bitfinex-derivatives/quotes_SOLF0:USTF0_20250816
["timestamp","ask_amount","ask_price","bid_price","bid_amount"]
[1755339229496,6.85615594,186.37,186.32,3.05]
[1755339229695,4.00615594,186.36,186.32,3.05]
[1755339229897,2.85,186.37,186.32,3.05]
[1755339230198,4.00524178,186.36,186.32,3.05]
[1755339230397,2.85,186.39,186.32,3.05]
[1755339230599,4.00469023,186.38,186.32,3.05]
[1755339230800,2.85,186.39,186.32,3.05]
[1755339230996,4.00487994,186.38,186.34,2.90116518]
[1755339231197,2.85,186.39,186.35,3.05]
[1755339231391,2.85,186.41,186.35,3.05]
[1755339231600,2.85,186.39,186.35,3.05]
[1755339231997,2.85,186.41,186.35,3.05]
[1755339232197,6.85483046,186.4,186.35,3.05]
[1755339232396,2.85,186.4,186.35,3.05]
[1755339233402,4.00436041,186.39,186.35,3.05]
[1755339233598,4.3711323,186.43,186.35,3.05]
[1755339233599,2.85,186.38,186.35,3.05]
[1755339233904,2.85,186.42,186.32,5.95116518]
[1755339234101,4.3711323,186.39,186.29,2.90116518]
[1755339234292,6.85376258,186.38,186.29,5.95116518]
[1755339234493,2.85,186.36,186.3,3.05]
[1755339234698,2.85,186.34,186.31,3.05]
[1755339235104,4.3711323,186.39,186.31,3.05]
[1755339235303,2.85,186.33,186.31,3.05]
[1755339235705,4.3711323,186.38,186.31,3.05]
[1755339236003,2.85,186.34,186.31,3.05]
[1755339236205,2.85,186.33,186.31,3.05]
[1755339236605,5.3638,186.32,186.31,3.05]
[1755339237206,4.3711323,186.38,186.24,3.05]
[1755339237408,2.85,186.36,186.27,3.05]
[1755339237607,2.85,186.38,186.33,3.05]
[1755339237806,5.3624,186.36,186.33,3.05]
[1755339239102,5.3624,186.36,186.33,5.3632]
[1755339239302,5.3624,186.36,186.34,3.05]
[1755339239809,5.3628,186.35,186.34,3.05]
[1755339240012,2.85,186.38,186.34,3.05]
[1755339240211,3.99836696,186.37,186.36,2.90116518]
[1755339240407,4.3711323,186.43,186.36,5.95116518]
[1755339240709,6.84877951,186.42,186.37,3.05]
[1755339240902,2.85,186.44,186.4,3.05]
[1755339241102,3.99963066,186.43,186.41,3.05]
[1755339241301,6.84963066,186.42,186.4,3.05]
[1755339241499,2.85,186.42,186.4,3.05]
[1755339242105,7.2211323,186.48,186.4,3.05]
[1755339242304,4.00076657,186.47,186.43,3.05]
[1755339242500,4.00076657,186.47,186.28,140.38]
[1755339242501,2.85,186.49,186.44,3.05]
[1755339242704,4.00001638,186.48,186.44,3.05]
[1755339242906,2.85,186.45,186.42,3.05]
[1755339243106,3.99919743,186.44,186.4,3.05]
[1755339243312,2.85,186.42,186.4,3.05]
[1755339243513,2.85,186.42,186.36,3.05]
[1755339244013,2.85,186.42,186.36,5.3624]
[1755339244218,2.85,186.42,186.37,3.05]
[1755339246507,4.01190081,186.41,186.24,3.05]
[1755339246707,16.1,186.44,186.29,3.05]
[1755339246708,2.85,186.39,186.29,3.05]
[1755339246910,2.85,186.37,186.29,3.05]
[1755339247407,4.03170198,186.36,186.29,3.05]
[1755339247604,2.85,186.37,186.29,3.05]
[1755339247801,4.03170198,186.36,186.29,3.05]
[1755339248002,2.85,186.37,186.29,3.05]
[1755339249009,2.85,186.41,186.3,3.05]
[1755339249216,6.88381977,186.4,186.3,3.05]
[1755339249413,2.85,186.4,186.3,3.05]
[1755339250111,5.3624,186.37,186.32,5.3634]
[1755339250416,2.85,186.4,186.33,3.05]
[1755339250911,4.3711323,186.45,186.32,4.56756549]
[1755339251119,4.03529756,186.44,186.38,3.05]
[1755339251319,2.85,186.48,186.42,3.05]
[1755339251716,4.3711323,186.52,186.42,3.05]
[1755339251908,4.03554512,186.51,186.47,5.3592]
[1755339252112,5.3579,186.52,186.46,3.05]
[1755339252311,120.40511829,186.54,186.46,3.05]
[1755339252517,4.03336649,186.53,186.46,3.05]
[1755339252721,122.91261829,186.54,186.49,3.05]
[1755339252918,4.03337158,186.53,186.49,3.05]
[1755339253219,120.40511829,186.54,186.5,3.05]
[1755339253518,120.40511829,186.54,186.51,3.05]
[1755339254220,5.3576,186.53,186.51,3.05]
[1755339256411,117.55511829,186.54,186.45,4.56756549]
[1755339256616,117.55511829,186.54,186.46,3.05]
[1755339256617,2.85,186.53,186.46,3.05]
[1755339256813,117.55511829,186.54,186.46,3.05]
[1755339257019,5.3578,186.53,186.47,5.359]
[1755339257218,5.3578,186.53,186.48,3.05]
[1755339257420,2.85,186.53,186.48,3.05]
[1755339258216,5.358,186.52,186.48,3.05]
[1755339259121,5.3582,186.51,186.48,3.05]
[1755339259524,5.3582,186.51,186.46,2.89]
[1755339260229,5.3585,186.5,186.46,2.89]
[1755339262327,2.85,186.53,186.46,2.89]
[1755339262328,2.84,186.53,186.46,2.89]
[1755339262720,4.39755685,186.59,186.46,2.89]
[1755339262721,2.84,186.55,186.46,2.89]
[1755339263017,2.84,186.53,186.46,2.89]
[1755339263422,5.3588,186.49,186.46,2.89]
[1755339263922,5.3588,186.49,186.45,4.56756549]
[1755339264125,2.84,186.55,186.39,4.56756549]
[1755339264326,2.84,186.53,186.4,2.89]
[1755339264525,2.84,186.53,186.41,5.3608]
[1755339264723,2.84,186.53,186.42,2.89]
[1755339264924,2.84,186.51,186.36,360.4]
[1755339265228,2.84,186.49,186.36,365.7624]
[1755339265422,2.84,186.47,186.36,360.4]
[1755339265727,2.84,186.47,186.4,2.89]
[1755339267926,156.08,186.53,186.4,2.89]
[1755339268126,2.84,186.51,186.43,4.56756549]
[1755339268328,2.84,186.51,186.44,2.89]
[1755339268528,2.84,186.55,186.44,2.89]
[1755339268729,2.84,186.54,186.48,2.89]
[1755339269022,2.84,186.57,186.48,2.89]
[1755339269229,2.84,186.55,186.48,2.89]
[1755339272526,2.84,186.53,186.43,7.45756549]
[1755339272828,2.84,186.53,186.44,2.89]
[1755339273223,2.84,186.53,186.44,5.3599]
[1755339273422,2.84,186.53,186.45,2.89]
[1755339273620,2.84,186.53,186.45,8.2496]
[1755339273825,2.84,186.53,186.44,2.89]
[1755339274728,5.3589,186.49,186.45,5.3598]
[1755339274934,2.84,186.56,186.44,2.89]
[1755339275231,5.3591,186.48,186.44,2.89]
[1755339275727,2.84,186.51,186.37,2.89]
[1755339275933,2.84,186.45,186.39,2.89]
[1755339280335,2.84,186.48,186.4,2.89]
[1755339280537,4.11716871,186.47,186.4,2.89]
[1755339280733,2.84,186.48,186.4,5.361]
[1755339280934,4.11716871,186.47,186.41,2.89]
[1755339281135,2.84,186.48,186.41,2.89]
[1755339281330,4.11883231,186.47,186.41,2.89]
[1755339281537,2.84,186.51,186.41,2.89]
[1755339281736,4.11995269,186.5,186.45,2.89]
[1755339282035,2.84,186.52,186.45,2.89]
[1755339282234,4.12183077,186.51,186.45,2.89]
[1755339282440,2.84,186.49,186.41,2.89]
[1755339282639,6.96183077,186.48,186.43,2.89]
[1755339282833,2.84,186.51,186.41,2.89]
[1755339283140,2.84,186.51,186.4,2.89]
[1755339283141,2.84,186.43,186.4,2.89]
[1755339283431,2.84,186.43,186.33,77.51060107]
[1755339283432,2.84,186.41,186.33,2.89]
[1755339283830,16.1,186.46,186.33,2.89]
[1755339283831,2.84,186.39,186.33,2.89]
[1755339285145,2.84,186.37,186.29,2.89]
[1755339285344,16.1,186.43,186.29,2.89]
[1755339285345,2.84,186.4,186.3,4.56756549]
[1755339285549,4.11900766,186.39,186.31,2.89]
[1755339285738,2.84,186.4,186.34,2.89]
[1755339286144,2.84,186.43,186.35,2.89]
[1755339286347,2.84,186.43,186.38,2.89]
[1755339287745,2.84,186.47,186.38,2.89]
[1755339287947,2.84,186.45,186.38,2.89]
[1755339288151,2.84,186.43,186.38,2.89]
[1755339288346,4.12058677,186.44,186.38,2.89]
[1755339288347,4.12058677,186.42,186.38,2.89]
[1755339288652,2.85,186.45,186.32,3.03]
[1755339288852,4.11994822,186.44,186.32,3.03]
[1755339289054,6.96994822,186.43,186.32,3.03]
[1755339289351,4.11994822,186.42,186.32,3.03]
[1755339289552,2.85,186.43,186.32,3.03]
[1755339289742,4.11947249,186.42,186.35,5.3627]
[1755339289946,2.85,186.43,186.36,3.03]
[1755339290147,2.85,186.4,186.37,3.03]
[1755339290446,4.39755685,186.46,186.38,3.03]
[1755339290751,8.2115,186.39,186.38,3.03]
[1755339292349,4.39755685,186.46,186.32,4.56756549]
[1755339292350,5.3619,186.38,186.32,4.56756549]
[1755339292556,2.85,186.42,186.3,3.03]
[1755339292755,2.85,186.4,186.3,3.03]
[1755339293054,2.85,186.38,186.3,5.3641]
[1755339293250,2.85,186.38,186.31,3.03]
[1755339293446,5.3634,186.33,186.31,3.03]
[1755339293649,7.24755685,186.4,186.28,3.03]
[1755339293850,2.85,186.38,186.28,3.03]
[1755339294052,4.39755685,186.36,186.28,3.03]
[1755339294252,4.12024372,186.35,186.28,3.03]
[1755339294559,5.3644,186.29,186.28,3.03]
[1755339295055,2.85,186.33,186.24,3.03]
[1755339295251,2.85,186.37,186.24,3.03]
[1755339295453,4.11481129,186.36,186.24,3.03]
[1755339295658,2.85,186.37,186.24,3.03]
[1755339295855,4.11514664,186.36,186.24,3.03]
[1755339296060,5.363,186.34,186.29,5.3642]
[1755339296358,2.85,186.37,186.3,3.03]
[1755339296750,5.3632,186.34,186.3,3.03]
[1755339298555,5.3633,186.33,186.3,3.03]
[1755339299055,2.85,186.37,186.3,3.03]
[1755339299251,5.3627,186.35,186.3,3.03]
[1755339299657,5.363,186.34,186.31,3.03]
[1755339300255,5.3627,186.36,186.31,3.03]
[1755339300455,142.63,186.39,186.31,3.03]
[1755339300651,5.3624,186.36,186.31,3.03]
[1755339300856,142.63,186.39,186.31,3.03]
[1755339301061,2.85,186.39,186.31,3.03]
[1755339301563,2.85,186.37,186.31,3.03]
[1755339302665,7.24885303,186.41,186.29,3.03]
[1755339302857,2.85,186.39,186.29,3.03]
[1755339303058,4.11230868,186.38,186.31,3.03]
[1755339303360,2.85,186.41,186.31,3.03]
[1755339303561,5.3626,186.36,186.32,5.3635]
[1755339303760,5.3626,186.36,186.33,3.03]
[1755339304063,8.2126,186.36,186.34,3.03]
[1755339304264,2.85,186.41,186.35,3.03]
[1755339304459,4.11293273,186.4,186.35,3.03]
[1755339304659,4.39885303,186.44,186.21,54.7332]
[1755339304864,2.85,186.38,186.28,3.03]
[1755339305359,2.85,186.42,186.32,3.03]
[1755339305563,4.56756549,186.52,186.36,3.03]
[1755339305564,2.85,186.46,186.36,3.03]
[1755339305764,5.3596,186.46,186.41,3.03]
[1755339305958,2.85,186.5,186.41,3.03]
[1755339306269,5.3581,186.51,186.44,3.03]
[1755339306468,2.85,186.53,186.44,3.03]
[1755339306660,4.11914017,186.52,186.44,3.03]
[1755339306960,2.85,186.53,186.44,3.03]
[1755339307166,4.119378,186.52,186.47,4.56756549]
[1755339307362,2.85,186.56,186.48,3.03]
[1755339307662,4.12045885,186.55,186.48,3.03]
[1755339307862,2.85,186.58,186.48,3.03]
[1755339308062,4.12063353,186.57,186.48,3.03]
[1755339308263,2.85,186.57,186.48,3.03]
[1755339308462,472.66930568,186.59,186.51,0.03817538]
[1755339308661,2.85,186.56,186.53,3.03]
[1755339309262,2.85,186.55,186.53,3.03]
[1755339309963,2.85,186.55,186.51,0.03817538]
[1755339310168,2.85,186.55,186.52,3.03]
[1755339310960,472.66930568,186.59,186.51,0.03817538]
[1755339310961,2.85,186.58,186.51,0.03817538]
[1755339311167,4.11532074,186.57,186.51,0.03817538]
[1755339311359,472.66930568,186.59,186.51,0.03817538]
[1755339311360,6.96532074,186.56,186.51,0.03817538]
[1755339311562,2.85,186.54,186.51,3.06817538]
[1755339311759,5.3578,186.52,186.51,3.06817538]
[1755339312564,8.2078,186.52,186.51,0.03817538]
[1755339313768,5.3578,186.52,186.51,3.06817538]
[1755339315060,8.2078,186.52,186.51,0.03817538]
[1755339315265,8.2078,186.52,186.51,7.538e-05]
[1755339318370,5.3578,186.52,186.51,3.03007538]
[1755339319364,8.1978,186.52,186.51,3.03007538]
[1755339320467,5.3578,186.52,186.51,3.03007538]
[1755339321877,10.00326581,186.52,186.51,7.538e-05]
[1755339322176,9.46326581,186.52,186.51,7.538e-05]
[1755339322672,5.3578,186.52,186.51,7.538e-05]
[1755339322874,10.0030312,186.52,186.51,7.538e-05]
[1755339323271,9.4630312,186.52,186.51,7.538e-05]
[1755339323978,5.3578,186.52,186.51,7.538e-05]
[1755339325271,0.04059713,186.53,186.51,7.538e-05]
[1755339327076,2.84,186.62,186.51,0.54007538]
[1755339327278,4.10516906,186.61,186.55,2.86]
[1755339327477,2.84,186.62,186.55,2.86]
[1755339327973,2.84,186.62,186.56,2.86]
[1755339328175,2.84,186.64,186.56,2.86]
[1755339328480,142.32,186.67,186.6,5.3553]
[1755339328781,118.61464909,186.7,186.61,2.86]
[1755339328972,2.84,186.68,186.61,2.86]
[1755339329174,2.84,186.66,186.61,2.86]
[1755339329670,5.355,186.62,186.61,2.86]
[1755339332081,5.355,186.62,186.59,2.86]
[1755339332082,5.3557,186.6,186.59,2.86]
[1755339332678,7.23885303,186.68,186.54,2.86]
[1755339332882,2.84,186.66,186.54,2.86]
[1755339333086,2.84,186.64,186.54,2.86]
[1755339333283,4.09340323,186.63,186.54,2.86]
[1755339333481,2.84,186.62,186.54,2.86]
[1755339334582,2.84,186.62,186.56,0.03444784]
[1755339334784,2.84,186.61,186.59,2.86]
[1755339335480,2.84,186.63,186.54,2.86]
[1755339335687,2.84,186.67,186.54,2.86]
[1755339335985,2.84,186.65,186.58,2.86]
[1755339336188,4.08921654,186.64,186.57,0.03554833]
[1755339336487,2.84,186.61,186.59,2.86]
[1755339336685,4.39885303,186.69,186.54,2.86]
[1755339336884,2.84,186.63,186.54,2.86]
[1755339337088,2.84,186.62,186.59,2.86]
[1755339337283,2.84,186.62,186.6,2.86]
[1755339337483,2.84,186.68,186.54,2.86]
[1755339337780,7.23885303,186.66,186.59,0.0347232]
[1755339337985,2.84,186.64,186.59,0.0347232]
[1755339338180,2.84,186.62,186.59,0.0347232]
[1755339338384,4.39885303,186.66,186.59,0.0347232]
[1755339338584,2.84,186.62,186.59,2.8947232]
[1755339338882,4.39885303,186.67,186.59,0.0347232]
[1755339339088,2.84,186.65,186.59,0.0347232]
[1755339339384,2.84,186.63,186.59,0.0347232]
[1755339339590,2.84,186.61,186.59,0.0347232]
[1755339339783,2.84,186.6,186.59,0.0347232]
[1755339340292,6.92991156,186.6,186.59,2.32e-05]
[1755339340484,5.3563,186.58,186.53,5.3575]
[1755339340679,2.878285,186.61,186.54,2.86]
[1755339340886,2.84,186.61,186.54,2.86]
[1755339341190,2.84,186.59,186.54,2.86]
[1755339341491,2.84,186.63,186.51,2.86]
[1755339341784,0.0374934,186.58,186.57,2.86]
[1755339342186,139.32,186.66,186.57,8.2161]
[1755339342391,4.09498933,186.65,186.57,2.86]
[1755339342688,0.0401745,186.59,186.57,2.86]
[1755339342888,2.84,186.65,186.57,2.86]
[1755339343079,4.09581262,186.64,186.57,2.86]
[1755339343283,0.03803608,186.6,186.57,2.86]
[1755339344391,0.03803608,186.6,186.57,8.2163]
[1755339344592,0.03803608,186.6,186.57,5.3563]
[1755339344788,0.03803608,186.6,186.58,2.86]
[1755339345295,0.03803608,186.6,186.59,2.86]
[1755339346388,4.14040035,186.6,186.59,2.86]
[1755339346995,4.14040035,186.6,186.55,2.86]
[1755339346996,2.85,186.59,186.55,2.86]
[1755339347186,4.1053713,186.58,186.55,2.86]
[1755339347391,0.03803608,186.6,186.55,2.86]
[1755339347593,4.10554555,186.59,186.55,2.86]
[1755339347790,4.10536872,186.58,186.56,2.86]
[1755339347993,6.9547917,186.57,186.51,2.86]
[1755339348293,6.9547917,186.56,186.51,2.86]
[1755339348494,4.1047917,186.55,186.51,2.86]
[1755339348794,4.1047917,186.54,186.5,4.56756549]
[1755339348995,4.10857149,186.53,186.46,4.56756549]
[1755339349199,2.84,186.55,186.46,4.56756549]
[1755339349498,4.11174228,186.54,186.47,3.02]
[1755339349694,0.04058449,186.52,186.47,3.02]
[1755339349894,0.04058449,186.52,186.49,3.02]
[1755339350600,0.04058449,186.52,186.46,4.56756549]
[1755339350601,4.11621913,186.51,186.47,3.02]
[1755339350802,0.04058449,186.52,186.47,3.02]
[1755339351000,4.11557928,186.51,186.48,5.359]
[1755339351196,0.04058449,186.52,186.49,3.02]
[1755339351606,0.04058449,186.52,186.51,3.02]
[1755339351802,4.15878107,186.52,186.51,3.02]
[1755339352703,4.15878107,186.52,186.47,3.02]
[1755339352904,0.04058449,186.52,186.47,3.02]
[1755339353295,0.04058449,186.52,186.5,3.02]
[1755339355305,0.04058449,186.52,186.47,3.02]
[1755339355507,4.11827745,186.51,186.47,3.02]
[1755339355707,5.3589,186.49,186.46,3.02]
[1755339355910,2.84,186.48,186.46,3.02]
[1755339356206,2.84,186.49,186.47,3.02]
[1755339356402,5.359,186.48,186.47,3.02]
[1755339357102,9.47537537,186.48,186.47,3.02]
[1755339357306,6.95637537,186.48,186.45,3.02]
[1755339357509,0.0341588,186.49,186.43,3.02]
[1755339357706,0.0341588,186.49,186.46,3.02]
[1755339357903,0.0341588,186.49,186.39,3.02]
[1755339358106,2.84,186.47,186.39,5.3613]
[1755339358307,4.11603627,186.46,186.38,3.02]
[1755339358505,2.84,186.47,186.38,3.02]
[1755339358713,0.03611148,186.45,186.38,3.02]
[1755339358906,0.03611148,186.45,186.38,8.3818]
[1755339359109,0.03611148,186.45,186.39,3.02]
[1755339359310,5.3606,186.43,186.39,3.02]
[1755339359610,0.03611148,186.45,186.39,3.02]
[1755339359809,2.84,186.42,186.4,3.02]
[1755339360311,0.03611148,186.45,186.38,3.02]
[1755339360707,0.03611148,186.45,186.41,5.3607]
[1755339361015,0.03611148,186.45,186.42,3.02]
[1755339361308,0.03611148,186.45,186.42,8.3807]
[1755339361514,0.03611148,186.45,186.37,4.56756549]
[1755339361515,0.03611148,186.45,186.43,3.02]
[1755339361714,0.03611148,186.45,186.44,3.02]
[1755339362015,2.87611148,186.45,186.44,3.02]
[1755339362216,0.03611148,186.45,186.44,3.02]
[1755339362708,2.84,186.44,186.42,3.02]
[1755339362908,0.03611148,186.45,186.41,5.3609]
[1755339363109,0.03611148,186.45,186.42,3.02]
[1755339363506,2.84,186.52,186.42,3.02]
[1755339363715,2.84,186.52,186.42,3.0563488]
[1755339364016,8.1984,186.5,186.47,3.02]
[1755339364207,8.1984,186.5,186.48,3.02]
[1755339365018,4.40055663,186.57,186.44,5.36]
[1755339365317,4.40055663,186.55,186.42,3.02]
[1755339365616,2.84,186.53,186.42,3.02]
[1755339365814,2.84,186.51,186.42,3.02]
[1755339366019,2.84,186.49,186.42,3.02]
[1755339366309,2.84,186.47,186.39,3.02]
[1755339366514,4.10974693,186.46,186.39,3.02]
[1755339366810,2.84,186.45,186.39,3.02]
[1755339367814,0.03451196,186.47,186.39,3.02]
[1755339368418,5.39381196,186.47,186.39,3.02]
[1755339369115,5.3595,186.46,186.42,5.3605]
[1755339369407,5.3595,186.46,186.45,3.02]
[1755339369714,2.84,186.45,186.43,3.02]
[1755339370113,0.03451196,186.47,186.43,3.02]
[1755339370310,2.84,186.46,186.43,3.02]
[1755339370509,2.84,186.46,186.44,3.02]
[1755339372021,5.36,186.45,186.44,3.02]
[1755339372919,2.84,186.46,186.36,3.02]
[1755339373517,32.67475774,186.53,186.38,3.02]
[1755339373518,5.3612,186.41,186.38,3.02]
[1755339373718,2.88052842,186.43,186.36,3.02]
[1755339374724,5.3621,186.37,186.36,3.02]
[1755339375425,5.3621,186.37,186.34,3.02]
[1755339375426,2.84,186.37,186.34,3.02]
[1755339375721,2.84,186.37,186.31,3.02]
[1755339376221,4.40055663,186.44,186.32,4.56756549]
[1755339376222,2.84,186.43,186.32,4.56756549]
[1755339376425,2.84,186.43,186.35,5.3626]
[1755339376624,2.84,186.43,186.36,3.02]
[1755339376827,0.0373034,186.41,186.36,3.02]
[1755339377030,2.84,186.4,186.25,3.02]
[1755339377326,4.1020312,186.39,186.28,3.02]
[1755339377528,2.84,186.37,186.28,3.02]
[1755339377720,0.03984038,186.35,186.29,3.02]
[1755339377922,2.87984038,186.35,186.29,3.02]
[1755339378829,2.87984038,186.35,186.26,2.89]
[1755339379324,2.87984038,186.35,186.3,2.89]
[1755339379720,0.03984038,186.35,186.3,2.89]
[1755339379926,0.03984038,186.35,186.32,2.89]
[1755339380129,2.84,186.34,186.32,2.89]
[1755339380529,2.84,186.34,186.28,5.3646]
[1755339380530,2.87984038,186.35,186.28,2.89]
[1755339381232,2.87984038,186.35,186.28,8.2547]
[1755339381531,4.40055663,186.33,186.12,2.89]
[1755339381734,4.09145717,186.32,186.18,2.89]
[1755339381929,4.09145717,186.31,186.18,2.89]
[1755339382136,4.09145717,186.3,186.18,2.89]
[1755339382329,5.3673,186.19,186.18,2.89]
[1755339382631,0.03390588,186.27,186.18,2.89]
[1755339382936,4.40055663,186.32,186.18,4.56756549]
[1755339383129,0.04089367,186.24,186.19,2.89]
[1755339383634,5.3662,186.23,186.19,2.89]
[1755339384137,0.04089367,186.24,186.2,2.89]
[1755339384726,5.3664,186.23,186.2,2.89]
[1755339385333,0.04089367,186.24,186.2,2.89]
[1755339386428,0.04089367,186.24,186.21,5.3665]
[1755339386633,0.04089367,186.24,186.22,2.89]
[1755339388632,0.04089367,186.24,186.23,2.89]
[1755339389332,0.04089367,186.24,186.14,4.56756549]
[1755339389637,0.04089367,186.24,186.15,2.89]
[1755339389638,4.07378606,186.23,186.15,2.89]
[1755339389939,4.56756549,186.27,186.15,2.89]
[1755339390238,0.03560892,186.21,186.19,2.89]
[1755339390634,4.56756549,186.31,186.19,2.89]
[1755339390932,0.0412698,186.22,186.19,2.89]
[1755339391330,4.35754898,186.3,186.19,2.89]
[1755339391534,4.07336435,186.29,186.19,2.89]
[1755339391735,0.03506059,186.22,186.19,2.89]
[1755339391935,4.35754898,186.3,186.19,2.89]
[1755339392135,4.07336435,186.29,186.19,2.89]
[1755339392335,0.0361318,186.22,186.19,2.89]
[1755339392737,5.3662,186.23,186.19,2.89]
[1755339392934,0.03495601,186.22,186.19,2.89]
[1755339393640,5.3667,186.21,186.15,2.89]
[1755339393834,0.03495601,186.22,186.15,2.89]
[1755339394839,5.3678,186.18,186.15,2.89]
[1755339395034,0.03495601,186.22,186.15,2.89]
[1755339395638,0.03495601,186.22,186.19,2.89]
[1755339396035,4.35754898,186.32,186.21,2.89]
[1755339396339,0.03704629,186.22,186.15,2.89]
[1755339396537,5.3671,186.2,186.16,5.3679]
[1755339396739,4.35754898,186.27,186.17,2.89]
[1755339396940,0.03643007,186.2,186.17,2.89]
[1755339397240,4.35754898,186.26,186.19,2.89]
[1755339397440,4.07374212,186.25,186.19,2.89]
[1755339397642,0.03952121,186.2,186.11,4.56756549]
[1755339397841,0.03952121,186.2,186.15,4.56756549]
[1755339398031,5.85945774,186.32,186.19,4.56756549]
[1755339398032,0.04,186.32,186.19,4.56756549]
[1755339398233,4.07662855,186.31,186.25,2.89]
[1755339398431,4.35754898,186.35,186.25,2.89]
[1755339398432,0.04,186.35,186.25,2.89]
[1755339398636,4.07791213,186.34,186.25,2.89]
[1755339398833,4.07791213,186.33,186.25,2.89]
[1755339399042,4.07791213,186.32,186.25,2.89]
[1755339399235,5.3635,186.33,186.28,5.3644]
[1755339399439,5.3635,186.33,186.29,2.89]
[1755339399640,5.3635,186.33,186.3,2.89]
[1755339399836,5.3635,186.33,186.28,5.3644]
[1755339400144,9.42758261,186.32,186.31,2.89]
[1755339400442,4.06408261,186.32,186.31,2.89]
[1755339401341,4.35754898,186.38,186.31,2.89]
[1755339401545,4.06671267,186.37,186.31,2.89]
[1755339401742,4.06671267,186.37,186.3,0.03761003]
[1755339401743,4.06671267,186.36,186.34,5.3629]
[1755339401939,5.3618,186.39,186.35,2.89]
[1755339402242,9.42950317,186.38,186.35,2.89]
[1755339402434,5.3619,186.38,186.32,2.89]
[1755339402636,0.04,186.42,186.35,0.03380023]
[1755339402834,5.3621,186.37,186.36,2.89]
[1755339403545,0.04,186.4,186.35,0.03380023]
[1755339403746,0.04,186.38,186.35,2.3e-07]
[1755339404045,5.4023,186.36,186.35,2.3e-07]
[1755339404349,9.47297278,186.36,186.35,2.3e-07]
[1755339407044,0.04,186.33,186.23,4.56756549]
[1755339407245,4.07067278,186.32,186.23,9.93356549]
[1755339407445,5.3654,186.26,186.24,2.89]
[1755339407640,0.04,186.31,186.22,2.89]
[1755339407848,4.07200401,186.3,186.22,2.89]
[1755339408141,4.07200401,186.29,186.22,2.89]
[1755339408347,0.04052601,186.28,186.22,2.89]
[1755339410537,5.40542601,186.28,186.24,5.3658]
[1755339410843,0.04052601,186.28,186.25,3.07]
[1755339411244,5.40542601,186.28,186.25,3.07]
[1755339412646,5.365,186.27,186.25,3.07]
[1755339412844,0.04052601,186.28,186.2,3.07]
[1755339413541,5.3657,186.25,186.21,5.3664]
[1755339413747,0.04052601,186.28,186.23,4.56756549]
[1755339413948,0.04052601,186.28,186.24,3.07]
[1755339414252,5.3638,186.31,186.27,3.07]
[1755339414448,0.03730978,186.28,186.27,3.07]
[1755339415347,5.3657,186.25,186.21,5.3665]
[1755339415849,5.3657,186.25,186.22,3.07]
[1755339416050,5.3653,186.26,186.22,5.3664]
[1755339416250,5.3653,186.26,186.23,3.07]